fUST/lending_fUST_20250425
["ID","MTS","AMOUNT","RATE_DAILY","PERIOD"]
[358928279,1745549443395,-500.0,0.00016438,2]
[358928280,1745549443404,-500.0,0.00016438,2]
[358928281,1745549443413,-568.73,0.00016438,2]
[358928282,1745549443423,-1925.35,0.00016438,2]
[358928283,1745549443432,-1599.24,0.00016438,2]
[358928284,1745549443441,-556.77,0.00016438,2]
[358928285,1745549443453,-514.48,0.00016438,2]
[358928286,1745549443462,-500.0,0.00016438,2]
[358928287,1745549443471,-4516.84,0.00016438,2]
[358928288,1745549443481,-500.0,0.00016438,2]
[358928289,1745549443490,-500.0,0.00016438,2]
[358928290,1745549443499,-507.2085096,0.00016438,2]
[358928291,1745549443509,-533.09,0.00016438,2]
[358928292,1745549443519,-500.0,0.00016438,2]
[358928293,1745549443528,-500.0,0.00016438,2]
[358928294,1745549443538,-508.61694605,0.00016438,2]
[358928295,1745549443547,-500.0,0.00016438,2]
[358928296,1745549443557,-500.0,0.00016438,2]
[358928297,1745549443567,-1859.42,0.00016438,2]
[358928298,1745549443578,-1629.1,0.00016438,2]
[358928299,1745549443753,-500.0,0.00016438,2]
[358928300,1745549443778,-603.16,0.00016438,2]
[358928301,1745549443788,-510.44108875,0.00016438,2]
[358928302,1745549443799,-500.0,0.00016438,2]
[358928303,1745549443810,-500.0,0.00016438,2]
[358928304,1745549443819,-1836.59,0.00016438,2]
[358928305,1745549443829,-500.0,0.00016438,2]
[358928306,1745549443838,-504.79556041,0.00016438,2]
[358928307,1745549443847,-785.14,0.00016438,2]
[358928308,1745549443856,-983.7,0.00016438,2]
[358928309,1745549443866,-500.0,0.00016438,2]
[358928310,1745549443875,-500.0,0.00016438,2]
[358928311,1745549443885,-500.0,0.00016438,2]
[358928312,1745549443895,-500.0,0.00016438,2]
[358928313,1745549443904,-1273.39,0.00016438,2]
[358928314,1745549443913,-725.51,0.00016438,2]
[358928315,1745549443922,-1475.05,0.00016438,2]
[358928316,1745549443932,-419.45303092,0.00016438,2]
[358928317,1745549443942,-540.92,0.00016498,3]
[358928318,1745549443952,-186359.78915144,0.00016508,2]
[358928340,1745549446588,-2318.87656188,0.00016438,2]
[358928341,1745549446601,-1170.84954425,0.00016438,2]
[358928342,1745549446642,-349.77389387,0.00016438,2]
[358928343,1745549446652,-1610.28,0.00016438,2]
[358928344,1745549446661,-31536.40001321,0.00016508,2]
[358928345,1745549446671,-325.77307001,0.00016573,2]
[358928346,1745549446681,-500.0,0.00016573,2]
[358928347,1745549446691,-500.0,0.00016573,2]
[358928348,1745549446700,-500.0,0.00016573,2]
[358928349,1745549446710,-500.0,0.00016573,2]
[358928350,1745549446722,-500.0,0.00016573,2]
[358928351,1745549446732,-500.0,0.00016573,2]
[358928352,1745549446743,-161.88412011,0.00016573,2]
[358928353,1745549446753,-500.0,0.00016573,2]
[358928354,1745549446764,-500.0,0.00016573,2]
[358928355,1745549446773,-2172.99,0.00016712,2]
[358928356,1745549446782,-1914.7,0.00016712,2]
[358928357,1745549446792,-2203.01,0.00016712,2]
[358928358,1745549446802,-1809.53,0.00016712,2]
[358928359,1745549446811,-1924.9,0.00016712,2]
[358928360,1745549446822,-1689.22,0.00016712,2]
[358928361,1745549446831,-500.0,0.00016712,2]
[358928362,1745549446841,-500.0,0.00016712,2]
[358928363,1745549446851,-500.0,0.00016712,2]
[358928364,1745549446861,-500.0,0.00016712,2]
[358928365,1745549446871,-500.0,0.00016712,2]
[358928366,1745549446880,-1899.93,0.00016712,2]
[358928367,1745549446889,-500.0,0.00016712,2]
[358928368,1745549446899,-1908.64,0.00016712,2]
[358928369,1745549446910,-501.5,0.00016712,2]
[358928370,1745549446922,-1070.27,0.00016712,2]
[358928371,1745549446932,-1716.88,0.00016712,2]
[358928372,1745549446942,-288.85,0.00016712,2]
[358928373,1745549446953,-2052.69,0.00016712,2]
[358928374,1745549446962,-500.0,0.00016712,2]
[358928375,1745549446972,-631.41,0.00016712,2]
[358928376,1745549446981,-744.15,0.00016712,2]
[358928377,1745549446990,-1676.23,0.00016712,2]
[358928378,1745549446999,-390.05510446,0.00016712,2]
[358928379,1745549447008,-3214.76,0.00016712,2]
[358928380,1745549447017,-500.0,0.00016712,2]
[358928381,1745549447027,-500.0,0.00016712,2]
[358928382,1745549447036,-167.87,0.00016712,2]
[358928383,1745549447045,-162.66,0.00016712,2]
[358928384,1745549447056,-500.0,0.00016712,2]
[358928385,1745549447066,-1524.72,0.00016712,2]
[358928386,1745549447075,-500.0,0.00016712,2]
[358928387,1745549447084,-500.0,0.00016712,2]
[358928388,1745549447094,-615.67,0.00016712,2]
[358928389,1745549447103,-1574.15,0.00016712,2]
[358928390,1745549447112,-3495.08,0.00016712,2]
[358928391,1745549447121,-2166.58,0.00016712,2]
[358928392,1745549447131,-4773.21,0.00016712,2]
[358928393,1745549447142,-500.0,0.00016712,2]
[358928394,1745549447151,-1659.32,0.00016712,2]
[358928395,1745549447160,-1266.66,0.00016712,2]
[358928396,1745549447170,-619.61,0.00016712,2]
[358928397,1745549447179,-1678.08,0.00016712,2]
[358928398,1745549447189,-172.91,0.00016712,2]
[358928399,1745549447200,-568.73,0.00016712,2]
[358928400,1745549447209,-1925.35,0.00016712,2]
[358928401,1745549447218,-1599.24,0.00016712,2]
[358928402,1745549447227,-514.48,0.00016712,2]
[358928403,1745549447237,-254.72,0.00016712,2]
[358928404,1745549447247,-4516.84,0.00016712,2]
[358928405,1745549447257,-500.0,0.00016712,2]
[358928406,1745549447267,-500.0,0.00016712,2]
[358928407,1745549447277,-500.0,0.00016712,2]
[358928408,1745549447287,-500.0,0.00016712,2]
[358928409,1745549447296,-1859.42,0.00016712,2]
[358928410,1745549447308,-1629.1,0.00016712,2]
[358928411,1745549447319,-500.0,0.00016712,2]
[358928412,1745549447329,-500.0,0.00016712,2]
[358928413,1745549447339,-244.15,0.00016712,2]
[358928414,1745549447349,-1836.59,0.00016712,2]
[358928415,1745549447359,-500.0,0.00016712,2]
[358928416,1745549447369,-343.80583327,0.00016712,2]
[358928417,1745549447572,-441.33416673,0.00016712,2]
[358928418,1745549447582,-983.7,0.00016712,2]
[358928419,1745549447591,-500.0,0.00016712,2]
[358928420,1745549447601,-1273.39,0.00016712,2]
[358928421,1745549447611,-725.51,0.00016712,2]
[358928422,1745549447620,-1475.05,0.00016712,2]
[358928423,1745549447630,-1610.28,0.00016712,2]
[358928424,1745549447639,-3839.5,0.00016712,2]
[358928425,1745549447649,-160.0,0.00016733,2]
[358928426,1745549447658,-840.21051354,0.00016733,2]
[358928427,1745549447667,-160.0,0.00016733,2]
[358928428,1745549447677,-160.0,0.00016733,2]
[358928429,1745549447686,-12579.26882624,0.00016733,2]
[358928430,1745549447696,-1000.0,0.00016984,2]
[358928431,1745549447706,-170.08,0.00016986,2]
[358928432,1745549447716,-170.08,0.00016986,2]
[358928433,1745549447726,-170.08,0.00016986,2]
[358928434,1745549447735,-170.08,0.00016986,2]
[358928435,1745549447745,-170.08,0.00016986,2]
[358928436,1745549447754,-170.08722209,0.00016986,2]
[358928437,1745549447764,-2172.99,0.00016986,2]
[358928438,1745549447773,-1914.7,0.00016986,2]
[358928439,1745549447783,-2203.01,0.00016986,2]
[358928440,1745549447792,-1178.56680813,0.00016986,2]
[358928441,1745549448733,-253.26090535,0.00016986,2]
[358928448,1745549581549,151.59971612,0.00038356,60]
[358928452,1745549731537,180.0,0.00035616,120]
[358928453,1745549732164,250.0,0.00032877,120]
[358928454,1745549736538,386.0,0.00021918,120]
[358928458,1745549814754,1000.0,3.8e-05,60]
[358928459,1745549853128,2000.0,0.00038356,60]
[358928460,1745549862289,2000.0,0.00038356,60]
[358928461,1745549870575,2000.0,0.00038356,60]
[358928462,1745549879299,2000.0,0.00038356,60]
[358928466,1745549888076,2000.0,0.00038356,60]
[358928467,1745549986343,2000.0,0.00038356,60]
[358928468,1745549995419,2000.0,0.00038356,60]
[358928469,1745550002666,2000.0,0.00038356,60]
[358928474,1745550012933,2000.0,0.00038356,60]
[358928476,1745550024373,2000.0,0.00038356,60]
[358928478,1745550043656,2000.0,0.00038356,60]
[358928482,1745550127117,14999.81999919,0.0003835,120]
[358928494,1745550547102,-300.0,0.00015596,2]
[358928495,1745550547125,-227.58839057,0.00015597,2]
[358928496,1745550547149,-344.46681363,0.00015597,2]
[358928497,1745550547181,-500.0,0.00015597,2]
[358928498,1745550547203,-500.0,0.00015597,2]
[358928499,1745550547225,-500.0,0.00015597,2]
[358928500,1745550547247,-500.0,0.00015597,2]
[358928501,1745550547270,-500.0,0.00015597,2]
[358928502,1745550547292,-500.0,0.00015597,2]
[358928503,1745550547316,-500.0,0.00015597,2]
[358928504,1745550547338,-500.0,0.00015597,2]
[358928505,1745550547360,-500.0,0.00015597,2]
[358928506,1745550547383,-500.0,0.00015597,2]
[358928507,1745550547406,-500.0,0.00015597,2]
[358928508,1745550547429,-500.0,0.00015597,2]
[358928509,1745550547451,-500.0,0.00015597,2]
[358928510,1745550547474,-500.0,0.00015597,2]
[358928511,1745550547495,-500.0,0.00015597,2]
[358928512,1745550547517,-500.0,0.00015597,2]
[358928513,1745550547538,-500.0,0.00015597,2]
[358928514,1745550547560,-500.0,0.00015597,2]
[358928515,1745550547582,-500.0,0.00015597,2]
[358928516,1745550547602,-500.0,0.00015597,2]
[358928517,1745550547623,-500.0,0.00015597,2]
[358928518,1745550547644,-500.0,0.00015597,2]
[358928519,1745550547664,-500.0,0.00015597,2]
[358928520,1745550547687,-500.0,0.00015597,2]
[358928521,1745550547707,-500.0,0.00015597,2]
[358928522,1745550547729,-500.0,0.00015597,2]
[358928523,1745550547752,-500.0,0.00015597,2]
[358928524,1745550547774,-500.0,0.00015597,2]
[358928525,1745550547797,-500.0,0.00015597,2]
[358928526,1745550547818,-500.0,0.00015597,2]
[358928527,1745550547839,-271.08334028,0.00015597,2]
[358928528,1745550547860,-500.0,0.00015597,2]
[358928529,1745550547881,-500.0,0.00015597,2]
[358928530,1745550547901,-500.0,0.00015597,2]
[358928531,1745550547921,-3133.31583938,0.000156,2]
[358928532,1745550551172,-7128.74157367,0.000156,2]
[358928533,1745550551204,-6423.254896,0.00015655,2]
[358928534,1745550551233,-1.44478931,0.00016238,2]
[358928535,1745550557159,-577.9354,0.00016238,2]
[358928576,1745550631719,-186.77931183,0.00016238,2]
[358928578,1745550631728,-1235.96698608,0.00016338,2]
[358928580,1745550631737,-187.12122698,0.00016338,2]
[358928582,1745550631747,-108553.49550431,0.00016436,2]
[358928584,1745550631758,-1927.63,0.00016438,2]
[358928586,1745550631767,-500.0,0.00016438,2]
[358928588,1745550631776,-500.0,0.00016438,2]
[358928589,1745550631786,-500.0,0.00016438,2]
[358928591,1745550631796,-981.08,0.00016438,2]
[358928593,1745550631806,-500.0,0.00016438,2]
[358928595,1745550631816,-507.54099187,0.00016438,2]
[358928597,1745550631825,-1704.47,0.00016438,2]
[358928599,1745550631835,-511.65799137,0.00016438,2]
[358928601,1745550631845,-507.43676867,0.00016438,2]
[358928603,1745550631854,-499.48829375,0.00016438,2]
[358928605,1745550631863,-511.04539992,0.00016438,2]
[358928607,1745550631873,-507.00051334,0.00016438,2]
[358928609,1745550631882,-476.97734412,0.00016438,2]
[358928611,1745550631891,-1599.08,0.00016438,2]
[358928613,1745550631900,-1352.13,0.00016438,2]
[358928615,1745550631911,-500.0,0.00016438,2]
[358928617,1745550631921,-1548.45,0.00016438,2]
[358928619,1745550631930,-1764.49,0.00016438,2]
[358928621,1745550631940,-500.0,0.00016438,2]
[358928623,1745550631949,-500.0,0.00016438,2]
[358928625,1745550631958,-1741.6,0.00016438,2]
[358928627,1745550631968,-1749.58,0.00016438,2]
[358928629,1745550631979,-1538.24,0.00016438,2]
[358928631,1745550631988,-500.0,0.00016438,2]
[358928633,1745550631998,-500.0,0.00016438,2]
[358928635,1745550632008,-1683.55,0.00016438,2]
[358928637,1745550632018,-500.0,0.00016438,2]
[358928639,1745550632028,-1573.81,0.00016438,2]
[358928641,1745550632038,-1005.64,0.00016438,2]
[358928643,1745550632048,-1901.36,0.00016438,2]
[358928645,1745550632058,-1881.63,0.00016438,2]
[358928647,1745550632068,-833.63,0.00016438,2]
[358928649,1745550632078,-2946.86,0.00016438,2]
[358928651,1745550632087,-1476.09,0.00016438,2]
[358928653,1745550632098,-500.0,0.00016438,2]
[358928655,1745550632108,-578.79,0.00016438,2]
[358928657,1745550632118,-500.0,0.00016438,2]
[358928659,1745550632128,-500.0,0.00016438,2]
[358928661,1745550632138,-1262.59,0.00016438,2]
[358928663,1745550632147,-1397.66,0.00016438,2]
[358928665,1745550632157,-564.37,0.00016438,2]
[358928668,1745550632168,-1536.55,0.00016438,2]
[358928670,1745550632178,-1719.01,0.00016438,2]
[358928672,1745550632188,-3203.82,0.00016438,2]
[358928674,1745550632197,-3519.54,0.00016438,2]
[358928676,1745550632207,-1161.1,0.00016438,2]
[358928678,1745550632216,-1986.03,0.00016438,2]
[358928679,1745550632226,-500.0,0.00016438,2]
[358928680,1745550632235,-500.0,0.00016438,2]
[358928681,1745550632245,-567.97,0.00016438,2]
[358928682,1745550632255,-1521.05,0.00016438,2]
[358928683,1745550632265,-500.0,0.00016438,2]
[358928684,1745550632275,-4375.44,0.00016438,2]
[358928685,1745550632284,-544.79398003,0.00016438,2]
[358928686,1745550632293,-1465.97,0.00016438,2]
[358928687,1745550632303,-1764.9,0.00016438,2]
[358928688,1745550632313,-500.0,0.00016438,2]
[358928689,1745550632323,-500.0,0.00016438,2]
[358928690,1745550632336,-500.0,0.00016438,2]
[358928691,1745550632345,-500.0,0.00016438,2]
[358928692,1745550632355,-4140.44,0.00016438,2]
[358928693,1745550632365,-719.71,0.00016438,2]
[358928694,1745550632375,-500.0,0.00016438,2]
[358928695,1745550632384,-521.33,0.00016438,2]
[358928696,1745550632394,-1675.36,0.00016438,2]
[358928697,1745550632405,-1493.35,0.00016438,2]
[358928698,1745550632416,-500.0,0.00016438,2]
[358928699,1745550632426,-1167.28,0.00016438,2]
[358928700,1745550632435,-500.0,0.00016438,2]
[358928701,1745550632445,-901.72,0.00016438,2]
[358928702,1745550632456,-665.05,0.00016438,2]
[358928703,1745550632466,-500.0,0.00016473,2]
[358928704,1745550632476,-500.0,0.00016473,2]
[358928705,1745550632487,-500.0,0.00016473,2]
[358928706,1745550632496,-500.0,0.00016473,2]
[358928707,1745550632694,-500.0,0.00016473,2]
[358928708,1745550632704,-500.0,0.00016473,2]
[358928709,1745550632714,-1235.96698604,0.00016612,2]
[358928710,1745550632724,-1927.63,0.00016712,2]
[358928711,1745550632733,-500.0,0.00016712,2]
[358928712,1745550632744,-500.0,0.00016712,2]
[358928713,1745550632754,-500.0,0.00016712,2]
[358928714,1745550632763,-981.08,0.00016712,2]
[358928715,1745550632773,-500.0,0.00016712,2]
[358928716,1745550632782,-1704.47,0.00016712,2]
[358928717,1745550632792,-1599.08,0.00016712,2]
[358928718,1745550632801,-1352.13,0.00016712,2]
[358928719,1745550632811,-500.0,0.00016712,2]
[358928720,1745550632821,-1548.45,0.00016712,2]
[358928721,1745550632830,-1764.49,0.00016712,2]
[358928722,1745550632840,-500.0,0.00016712,2]
[358928723,1745550632849,-500.0,0.00016712,2]
[358928724,1745550632859,-1741.6,0.00016712,2]
[358928725,1745550632868,-1749.58,0.00016712,2]
[358928726,1745550632878,-1538.24,0.00016712,2]
[358928727,1745550632887,-500.0,0.00016712,2]
[358928728,1745550632897,-500.0,0.00016712,2]
[358928729,1745550632907,-1683.55,0.00016712,2]
[358928730,1745550632917,-500.0,0.00016712,2]
[358928731,1745550632926,-1406.73092294,0.00016712,2]
[358928734,1745550637964,-241.12676954,0.00016435,2]
[358928735,1745550637975,-159.3118734,0.00016435,2]
[358928736,1745550637984,-798.89,0.00016438,2]
[358928737,1745550637994,-167.07907706,0.00016712,2]
[358928738,1745550638003,-1005.64,0.00016712,2]
[358928739,1745550638013,-1901.36,0.00016712,2]
[358928740,1745550638024,-1881.63,0.00016712,2]
[358928741,1745550638033,-2946.86,0.00016712,2]
[358928742,1745550638043,-1476.09,0.00016712,2]
[358928743,1745550638052,-500.0,0.00016712,2]
[358928744,1745550638062,-578.79,0.00016712,2]
[358928746,1745550638072,-500.0,0.00016712,2]
[358928747,1745550638082,-500.0,0.00016712,2]
[358928748,1745550638091,-1262.59,0.00016712,2]
[358928749,1745550638102,-1397.66,0.00016712,2]
[358928750,1745550638112,-564.37,0.00016712,2]
[358928751,1745550638123,-1719.01,0.00016712,2]
[358928752,1745550638132,-1536.55,0.00016712,2]
[358928753,1745550638143,-3203.82,0.00016712,2]
[358928754,1745550638152,-3519.54,0.00016712,2]
[358928755,1745550638161,-1161.1,0.00016712,2]
[358928756,1745550638170,-1986.03,0.00016712,2]
[358928757,1745550638180,-500.0,0.00016712,2]
[358928758,1745550638189,-500.0,0.00016712,2]
[358928759,1745550638198,-567.97,0.00016712,2]
[358928760,1745550638208,-1521.05,0.00016712,2]
[358928761,1745550638219,-500.0,0.00016712,2]
[358928762,1745550638229,-4375.44,0.00016712,2]
[358928763,1745550638239,-1465.97,0.00016712,2]
[358928764,1745550638250,-1764.9,0.00016712,2]
[358928765,1745550638260,-354.2704942,0.00016712,2]
[358928766,1745550638270,-500.0,0.00016712,2]
[358928767,1745550638280,-500.0,0.00016712,2]
[358928768,1745550638289,-500.0,0.00016712,2]
[358928769,1745550638298,-4140.44,0.00016712,2]
[358928770,1745550638308,-719.71,0.00016712,2]
[358928771,1745550638318,-500.0,0.00016712,2]
[358928772,1745550638329,-521.33,0.00016712,2]
[358928773,1745550638338,-1675.36,0.00016712,2]
[358928774,1745550638347,-1493.35,0.00016712,2]
[358928775,1745550638357,-500.0,0.00016712,2]
[358928776,1745550638367,-1167.28,0.00016712,2]
[358928777,1745550638376,-500.0,0.00016712,2]
[358928778,1745550638386,-901.72,0.00016712,2]
[358928779,1745550638397,-665.05,0.00016712,2]
[358928780,1745550638408,-798.89,0.00016712,2]
[358928781,1745550638420,-235.44661387,0.00016736,2]
[358928782,1745550638430,-420.98395174,0.00016737,2]
[358928783,1745550638440,-840.21051354,0.00016737,2]
[358928784,1745550638450,-160.0,0.00016737,2]
[358928785,1745550638460,-160.0,0.00016737,2]
[358928786,1745550638469,-500.0,0.00016873,2]
[358928787,1745550638479,-500.0,0.00016873,2]
[358928788,1745550638489,-500.0,0.00016873,2]
[358928789,1745550638499,-505.9426864,0.00016873,2]
[358928790,1745550638509,-500.0,0.00016873,2]
[358928791,1745550638518,-500.0,0.00016873,2]
[358928792,1745550638528,-500.0,0.00016873,2]
[358928793,1745550638537,-529.06944962,0.00016873,2]
[358928794,1745550638547,-500.0,0.00016873,2]
[358928795,1745550638556,-500.0,0.00016873,2]
[358928796,1745550638566,-461.92712851,0.00016873,2]
[358928797,1745550638575,-500.0,0.00016873,2]
[358928798,1745550638585,-502.69476561,0.00016873,2]
[358928799,1745550638596,-500.0,0.00016873,2]
[358928800,1745550638605,-502.37498209,0.00016873,2]
[358928801,1745550638615,-500.0,0.00016873,2]
[358928802,1745550638627,-500.0,0.00016873,2]
[358928803,1745550638636,-583.070604,0.00016873,2]
[358928804,1745550638647,-500.0,0.00016873,2]
[358928805,1745550638658,-500.0,0.00016873,2]
[358928806,1745550638668,-317.96099324,0.00016874,2]
[358928807,1745550638678,-207.4,0.00016876,2]
[358928808,1745550638688,-153.65920043,0.00016876,2]
[358928809,1745550638698,-1000.0,0.00016884,2]
[358928810,1745550638709,-1235.96698604,0.00016886,2]
[358928811,1745550638719,-57655.33733412,0.00016886,2]
[358928812,1745550638731,-1260.6161997,0.00016886,2]
[358928813,1745550638743,-3146.46526006,0.00016886,2]
[358928828,1745550640214,-524.25092517,0.00016338,2]
[358928829,1745550640226,-3266.65526013,0.00016886,2]
[358928840,1745550642935,-412.60625222,0.00016337,2]
[358928883,1745550645782,-87.39374778,0.00016337,2]
[358928884,1745550645793,-500.0,0.00016337,2]
[358928885,1745550645804,-627.10833403,0.00016337,2]
[358928886,1745550645814,-122.87883319,0.00016733,2]
[358928888,1745550645833,-37.12116681,0.00016733,2]
[358928889,1745550645843,-7751.63343365,0.00016886,2]
[358928890,1745550645855,-1860.0,0.00016886,2]
[358928891,1745550645866,-21890.58419945,0.00016886,2]
[358928892,1745550645889,-930.0,0.00016886,2]
[358928893,1745550645902,-16895.88349237,0.00016886,2]
[358928907,1745551115964,5000.0,0.00038356,60]
[358928908,1745551199159,177753.49805591,0.00038,60]
[358928915,1745551362429,2000.0,0.00038,60]
[358928919,1745551458150,10000.0,0.00038356,60]
[358928920,1745551476004,5131.509,0.00038356,60]
[358928921,1745551483861,905.0,0.00038,60]
[358928922,1745551511589,600.0,0.00038,120]
[358928923,1745551543704,1200.0,0.00038,120]
[358928929,1745551629123,-185.5031295,0.00015192,2]
[358928930,1745551629146,-196.10521633,0.00015344,2]
[358928933,1745551633930,73942.53379651,0.00038356,60]
[358928934,1745551648205,-248.94075782,0.00015344,2]
[358928937,1745551708516,279.2821918,0.0001,2]
[358928940,1745551722757,9529.84045649,0.00015,2]
[358928941,1745551751121,-235.74384074,0.00015344,2]
[358928942,1745551751143,-2527.586917,0.00015345,2]
[358928943,1745551751164,-450.9494318,0.00015533,2]
[358928944,1745551751185,-168.78873868,0.00015582,2]
[358928945,1745551751206,-536.93107178,0.00015583,2]
[358928946,1745551755133,-233.56684902,0.00015583,2]
[358928947,1745551755155,-404.76057102,0.00016165,2]
[358928948,1745551767210,-763.10879085,0.00015244,2]
[358928949,1745551767231,-52.25120915,0.00016165,2]
[358928969,1745551831906,-500.0,0.00015344,2]
[358928970,1745551831916,-500.0,0.00015344,2]
[358928971,1745551831925,-21.64654417,0.00016165,2]
[358928972,1745551831935,-458.71955948,0.00016338,2]
[358928973,1745551831944,-609.0,0.00016437,2]
[358928974,1745551831953,-500.0,0.00016438,2]
[358928975,1745551831963,-501.61962616,0.00016438,2]
[358928976,1745551831972,-501.95162171,0.00016438,2]
[358928977,1745551831981,-500.0,0.00016438,2]
[358928979,1745551831991,-899.32,0.00016438,2]
[358928980,1745551832001,-261.19960474,0.00016438,2]
[358928981,1745551832010,-589.73,0.00016438,2]
[358928982,1745551832019,-1410.05,0.00016438,2]
[358928983,1745551832029,-1368.9,0.00016438,2]
[358928984,1745551832038,-592.29958457,0.00016438,2]
[358928985,1745551832047,-1543.25,0.00016438,2]
[358928986,1745551832056,-1465.82,0.00016438,2]
[358928987,1745551832066,-1742.92,0.00016438,2]
[358928988,1745551832075,-1562.43,0.00016438,2]
[358928989,1745551832084,-1419.41,0.00016438,2]
[358928990,1745551832093,-1239.45,0.00016438,2]
[358928991,1745551832102,-1617.45,0.00016438,2]
[358928992,1745551832112,-500.0,0.00016438,2]
[358928993,1745551832122,-500.0,0.00016438,2]
[358928994,1745551832131,-1596.47,0.00016438,2]
[358928995,1745551832141,-1603.79,0.00016438,2]
[358928996,1745551832151,-500.0,0.00016438,2]
[358928997,1745551832160,-500.0,0.00016438,2]
[358928998,1745551832170,-502.1120639,0.00016438,2]
[358928999,1745551832179,-500.0,0.00016438,2]
[358929000,1745551832188,-1535.75,0.00016438,2]
[358929001,1745551832199,-500.0,0.00016438,2]
[358929002,1745551832208,-500.0,0.00016438,2]
[358929003,1745551832218,-1442.66,0.00016438,2]
[358929004,1745551832228,-266.79261173,0.00016438,2]
[358929005,1745551832238,-500.0,0.00016438,2]
[358929006,1745551832248,-609.63,0.00016438,2]
[358929007,1745551832259,-525.9,0.00016438,2]
[358929008,1745551832268,-732.32,0.00016438,2]
[358929009,1745551832278,-1640.16,0.00016438,2]
[358929010,1745551832287,-1724.83,0.00016438,2]
[358929011,1745551832309,-1766.99,0.00016438,2]
[358929012,1745551832320,-500.0,0.00016438,2]
[358929013,1745551832331,-546.76,0.00016438,2]
[358929014,1745551832341,-502.33906922,0.00016438,2]
[358929015,1745551832352,-1070.0,0.00016438,2]
[358929016,1745551832362,-500.0,0.00016438,2]
[358929017,1745551832372,-505.53990457,0.00016438,2]
[358929018,1745551832382,-506.15224125,0.00016438,2]
[358929019,1745551832394,-500.0,0.00016438,2]
[358929020,1745551832404,-2701.29,0.00016438,2]
[358929021,1745551832413,-500.0,0.00016438,2]
[358929022,1745551832423,-510.70955372,0.00016438,2]
[358929023,1745551832434,-500.0,0.00016438,2]
[358929024,1745551832445,-502.10978651,0.00016438,2]
[358929025,1745551832456,-505.36146558,0.00016438,2]
[358929026,1745551832466,-500.0,0.00016438,2]
[358929027,1745551832478,-500.0,0.00016438,2]
[358929028,1745551832488,-1575.76,0.00016438,2]
[358929029,1745551832499,-1358.59,0.00016438,2]
[358929030,1745551832510,-500.0,0.00016438,2]
[358929031,1745551832521,-1281.19,0.00016438,2]
[358929032,1745551832531,-3226.25,0.00016438,2]
[358929033,1745551832541,-559.38,0.00016438,2]
[358929034,1745551832551,-500.0,0.00016438,2]
[358929035,1745551832560,-1820.53,0.00016438,2]
[358929036,1745551832570,-500.0,0.00016438,2]
[358929037,1745551832580,-2971.93,0.00016438,2]
[358929038,1745551832590,-500.0,0.00016438,2]
[358929039,1745551832599,-1408.5,0.00016438,2]
[358929040,1745551832609,-500.0,0.00016438,2]
[358929041,1745551832619,-500.0,0.00016438,2]
[358929042,1745551832628,-153.0959595,0.00016438,2]
[358929057,1745551837880,-346.9040405,0.00016438,2]
[358929058,1745551837891,-500.0,0.00016438,2]
[358929059,1745551837902,-500.0,0.00016438,2]
[358929060,1745551837912,-1064.34,0.00016438,2]
[358929061,1745551837922,-520.64,0.00016438,2]
[358929062,1745551837931,-4010.82,0.00016438,2]